bitfinex-derivatives/quotes_BTCF0:USTF0_20250527
["timestamp","ask_amount","ask_price","bid_price","bid_amount"]
[1748367757622,0.34909432,110320.0,110310.0,1.45697147]
[1748367758513,0.35009432,110320.0,110310.0,1.45697147]
[1748367760231,0.35009432,110320.0,110310.0,1.33909147]
[1748367760430,0.35009432,110320.0,110310.0,1.45297147]
[1748367762732,0.35009432,110320.0,110310.0,1.42619495]
[1748367763723,0.35009432,110320.0,110310.0,1.47364482]
[1748367764630,0.35009432,110320.0,110310.0,1.52728802]
[1748367765025,0.35009432,110320.0,110310.0,1.44912178]
[1748367765227,0.35009432,110320.0,110310.0,1.61520779]
[1748367765736,0.35009432,110320.0,110310.0,1.67601369]
[1748367766236,0.35009432,110320.0,110310.0,1.56213369]
[1748367766444,0.35009432,110320.0,110310.0,1.67601369]
[1748367766932,0.35009432,110320.0,110310.0,1.85778455]
[1748367767137,0.35009432,110320.0,110310.0,1.85787444]
[1748367767724,0.35009432,110320.0,110310.0,1.80423124]
[1748367768622,0.35009432,110320.0,110310.0,1.68952108]
[1748367769925,0.35009432,110320.0,110310.0,1.57492062]
[1748367770439,0.35451663,110320.0,110310.0,1.57492062]
[1748367773438,0.35451663,110320.0,110310.0,1.34802871]
[1748367773630,0.35451663,110320.0,110310.0,1.06222261]
[1748367773820,0.35451663,110320.0,110310.0,1.27472871]
[1748367774235,0.35451663,110320.0,110310.0,1.26220266]
[1748367775137,0.35451663,110320.0,110310.0,1.32926336]
[1748367775340,0.35451663,110320.0,110310.0,1.39017846]
[1748367775738,0.35451663,110320.0,110310.0,1.39642691]
[1748367775930,0.35451663,110320.0,110310.0,1.2622228]
[1748367776334,0.35451663,110320.0,110310.0,1.21465605]
[1748367777138,0.35451663,110320.0,110310.0,1.10662464]
[1748367777334,0.35451663,110320.0,110310.0,1.20525074]
[1748367778343,0.35451663,110320.0,110310.0,1.21439225]
[1748367780348,0.35451663,110320.0,110310.0,1.20525074]
[1748367781947,0.35451663,110320.0,110310.0,1.3183442]
[1748367782354,0.35439663,110320.0,110310.0,1.3183442]
[1748367782549,0.35451663,110320.0,110310.0,1.27075074]
[1748367782861,0.35439663,110320.0,110310.0,1.2169434]
[1748367783169,0.35451663,110320.0,110310.0,1.2169434]
[1748367783547,0.35451663,110320.0,110310.0,1.26453775]
[1748367783760,0.35251663,110320.0,110310.0,1.26453775]
[1748367784148,0.35251663,110320.0,110310.0,1.33159845]
[1748367785753,0.35251663,110320.0,110310.0,0.60999845]
[1748367785956,0.35251663,110320.0,110310.0,1.33159845]
[1748367786856,0.35251663,110320.0,110310.0,0.60999845]
[1748367787062,0.35251663,110320.0,110310.0,1.33159845]
[1748367788858,0.35239663,110320.0,110310.0,1.33159845]
[1748367789060,0.35251663,110320.0,110310.0,1.33160711]
[1748367789369,0.62940854,110320.0,110310.0,0.53840301]
[1748367789660,1.63882845,110320.0,110310.0,0.61199188]
[1748367789860,1.41193654,110320.0,110310.0,0.55812521]
[1748367790068,2.30617935,110320.0,110310.0,0.19732521]
[1748367790575,1.82928744,110320.0,110310.0,0.15019605]
[1748367791362,1.82916744,110320.0,110310.0,0.15019605]
[1748367791551,1.77261654,110320.0,110310.0,0.15019605]
[1748367791757,1.77273654,110320.0,110310.0,0.15019605]
[1748367793362,1.77273654,110320.0,110310.0,0.15016842]
[1748367793568,1.99962845,110320.0,110310.0,0.15016842]
[1748367794170,1.77273654,110320.0,110310.0,0.15016842]
[1748367795568,1.77273654,110320.0,110310.0,0.13]
[1748367800760,1.54584463,110320.0,110310.0,0.13]
[1748367800964,1.77273654,110320.0,110310.0,0.13]
[1748367802169,1.70083654,110320.0,110310.0,0.13]
[1748367802669,1.61018854,110320.0,110310.0,0.13]
[1748367804083,1.38329663,110320.0,110310.0,0.13]
[1748367804471,1.61018854,110320.0,110310.0,0.13]
[1748367806180,1.38329663,110320.0,110310.0,0.13]
[1748367806479,1.61018854,110320.0,110310.0,0.13]
[1748367806876,0.80750854,110320.0,110310.0,0.13]
[1748367807077,1.24682854,110320.0,110310.0,0.13]
[1748367807376,1.24670854,110320.0,110310.0,0.13]
[1748367807571,1.24682854,110320.0,110310.0,0.13]
[1748367809181,1.24682854,110320.0,110310.0,0.15013485]
[1748367816580,1.24682854,110320.0,110310.0,0.17706038]
[1748367817670,0.58061663,110320.0,110310.0,0.17706038]
[1748367817880,0.30732231,110320.0,110310.0,1.27446124]
[1748367818073,0.00744231,110320.0,110310.0,1.756977]
[1748367818280,0.00744231,110320.0,110310.0,2.27694338]
[1748367818281,0.0029,110320.0,110310.0,2.27694338]
[1748367818680,0.0029,110320.0,110310.0,2.28409539]
[1748367818681,0.00302,110320.0,110310.0,2.28409539]
[1748367818988,0.0029,110320.0,110310.0,2.05720348]
[1748367819289,0.04064674,110320.0,110310.0,2.33896206]
[1748367819687,0.04064674,110320.0,110310.0,2.39270561]
[1748367819991,0.00282,110320.0,110310.0,2.33882324]
[1748367820177,0.00282,110320.0,110310.0,2.11193133]
[1748367820384,0.00012,110320.0,110310.0,2.11193133]
[1748367820573,0.1821763,110340.0,110330.0,0.1811849]
[1748367820787,0.1821763,110340.0,110330.0,1.39515956]
[1748367820984,0.1822963,110340.0,110330.0,1.16826765]
[1748367821190,0.1822963,110340.0,110330.0,1.15826765]
[1748367821491,0.1822963,110340.0,110330.0,1.19855462]
[1748367821787,0.1822963,110340.0,110330.0,1.01736972]
[1748367822084,0.1822963,110340.0,110330.0,1.19855462]
[1748367822276,0.1842963,110340.0,110330.0,1.19855462]
[1748367822687,0.1842963,110340.0,110330.0,1.21938563]
[1748367823575,0.1842963,110340.0,110330.0,1.17169797]
[1748367823890,0.1842963,110340.0,110330.0,1.18075836]
[1748367824584,0.1842963,110340.0,110330.0,1.22148954]
[1748367826392,0.1842963,110340.0,110330.0,1.44838145]
[1748367828493,0.1842963,110340.0,110330.0,1.54518145]
[1748367829597,0.1842963,110340.0,110330.0,1.31828954]
[1748367830293,0.18871861,110340.0,110330.0,1.31828954]
[1748367830698,0.41561052,110340.0,110330.0,1.30922925]
[1748367830893,0.00754231,110340.0,110330.0,1.27894228]
[1748367831093,0.18871091,110340.0,110330.0,1.31922925]
[1748367831292,0.18611091,110340.0,110330.0,1.50583419]
[1748367831590,0.18623091,110340.0,110330.0,1.48801526]
[1748367831798,0.18623091,110340.0,110330.0,1.52830223]
[1748367831996,0.18571091,110340.0,110330.0,1.52830223]
[1748367832198,0.18571091,110340.0,110330.0,1.30141032]
[1748367832392,0.18571091,110340.0,110330.0,1.52830223]
[1748367833587,0.18571091,110340.0,110330.0,1.55509312]
[1748367833792,0.18571091,110340.0,110330.0,1.52830223]
[1748367834496,0.18571091,110340.0,110330.0,1.6795393]
[1748367835310,0.18571091,110340.0,110330.0,1.65274223]
[1748367835914,0.18571091,110340.0,110330.0,1.42585032]
[1748367836212,0.18571091,110340.0,110330.0,1.02939569]
[1748367836213,0.89736282,110340.0,110330.0,1.02939569]
[1748367836510,1.12046282,110340.0,110330.0,0.96230857]
[1748367836707,0.89357091,110340.0,110330.0,0.96230857]
[1748367836905,0.39811091,110340.0,110330.0,1.37038548]
[1748367837110,0.36571091,110340.0,110330.0,1.49581173]
[1748367837310,0.36559091,110340.0,110330.0,1.08773482]
[1748367837617,0.36571091,110340.0,110330.0,1.08773482]
[1748367837916,0.39581091,110340.0,110330.0,1.08773482]
[1748367838709,0.39581091,110340.0,110330.0,1.10789431]
[1748367838901,0.39581091,110340.0,110330.0,1.28907941]
[1748367839108,0.39581091,110340.0,110330.0,1.10789431]
[1748367839316,0.39581091,110340.0,110330.0,1.28907941]
[1748367840610,0.39581091,110340.0,110330.0,1.26891992]
[1748367842220,0.39581091,110340.0,110330.0,1.28909278]
[1748367842521,0.39581091,110340.0,110330.0,1.12802179]
[1748367843110,0.39581091,110340.0,110330.0,1.30920679]
[1748367843714,0.21581091,110340.0,110330.0,1.30920679]
[1748367843915,0.18571091,110340.0,110330.0,1.30920679]
[1748367844518,0.18571091,110340.0,110330.0,1.28240664]
[1748367845721,0.21751091,110340.0,110330.0,1.28240664]
[1748367846518,0.21751091,110340.0,110330.0,1.33015138]
[1748367846726,0.21751091,110340.0,110330.0,1.28240664]
[1748367849026,0.18571091,110340.0,110330.0,1.28240664]
[1748367849319,0.00454231,110340.0,110330.0,1.50929855]
[1748367849519,0.18571091,110340.0,110330.0,1.3058409]
[1748367849726,0.18571091,110340.0,110330.0,1.53273281]
[1748367850222,0.18571091,110340.0,110330.0,1.3058409]
[1748367850412,0.18559091,110340.0,110330.0,1.3058409]
[1748367850610,0.18571091,110340.0,110330.0,1.3058409]
[1748367851127,0.18571091,110340.0,110330.0,1.4302809]
[1748367851128,0.21801091,110340.0,110330.0,1.4302809]
[1748367852424,0.18559091,110340.0,110330.0,1.65717281]
[1748367852632,0.18571091,110340.0,110330.0,1.70497189]
[1748367853523,0.18571091,110340.0,110330.0,1.70497149]
[1748367853726,0.00454231,110340.0,110330.0,1.70497094]
[1748367853930,0.00442231,110340.0,110330.0,1.77203164]
[1748367854226,0.18571091,110340.0,110330.0,1.67051228]
[1748367854418,0.00442231,110340.0,110330.0,1.88051228]
[1748367854614,0.00454231,110340.0,110330.0,1.92829755]
[1748367854819,0.00442231,110340.0,110330.0,1.92829755]
[1748367855019,0.00454231,110340.0,110330.0,1.92829755]
[1748367855220,0.00454231,110340.0,110330.0,2.01992955]
[1748367856632,0.00454231,110340.0,110330.0,1.79303764]
[1748367856833,0.00454231,110340.0,110330.0,1.9077478]
[1748367857034,0.18571091,110340.0,110330.0,2.22852968]
[1748367857335,0.00454231,110340.0,110330.0,2.22852968]
[1748367857831,0.00442231,110340.0,110330.0,2.22852968]
[1748367858022,0.0019,110350.0,110340.0,0.1811686]
[1748367858223,0.0019,110350.0,110340.0,2.05840311]
[1748367858421,0.0019,110350.0,110340.0,1.9912837]
[1748367858629,0.00202,110350.0,110340.0,2.0819077]
[1748367858931,0.0019,110350.0,110340.0,2.14899903]
[1748367859126,0.00202,110350.0,110340.0,2.14899903]
[1748367859726,0.00202,110350.0,110340.0,2.05510906]
[1748367862236,0.03422,110350.0,110340.0,2.05510906]
[1748367862538,0.03422,110350.0,110340.0,1.73779315]
[1748367862732,0.03422,110350.0,110340.0,1.96468506]
[1748367862927,0.03422,110350.0,110340.0,1.91689979]
[1748367863235,0.03422,110350.0,110340.0,1.96457914]
[1748367863826,0.03422,110350.0,110340.0,1.84937729]
[1748367866234,0.03422,110350.0,110340.0,1.62248538]
[1748367866531,0.2153722,110350.0,110340.0,1.38505729]
[1748367866839,0.2153722,110350.0,110340.0,1.75092427]
[1748367867051,0.2769722,110350.0,110340.0,1.68383294]
[1748367867639,0.2769722,110350.0,110340.0,1.91072485]
[1748367868424,0.2769722,110350.0,110340.0,1.68383294]
[1748367868732,0.2769722,110350.0,110340.0,1.27028661]
[1748367868933,0.2769722,110350.0,110340.0,1.39356661]
[1748367869234,0.2769722,110350.0,110340.0,1.1666747]
[1748367869428,0.2769722,110350.0,110340.0,1.39356661]
[1748367870035,0.2769722,110350.0,110340.0,1.46065794]
[1748367870742,0.2769722,110350.0,110340.0,1.50832049]
[1748367871239,0.03422,110350.0,110340.0,1.46065794]
[1748367871440,0.0341,110350.0,110340.0,1.51425911]
[1748367871628,0.03422,110350.0,110340.0,1.44716778]
[1748367871831,0.0341,110350.0,110340.0,1.46065794]
[1748367872035,0.03422,110350.0,110340.0,1.46065794]
[1748367872542,0.03422,110350.0,110340.0,1.46165794]
[1748367873442,1e-07,110350.0,110340.0,1.55228194]
[1748367873738,1e-07,110350.0,110340.0,1.48519061]
[1748367874038,0.0029,110380.0,110350.0,0.0986261]
[1748367874239,0.0626,110390.0,110380.0,0.181103]
[1748367874437,0.101,110400.0,110390.0,0.2797126]
[1748367874734,0.1533,110400.0,110390.0,0.78959706]
[1748367874938,0.1533,110400.0,110390.0,0.82965997]
[1748367875245,0.3343701,110400.0,110390.0,0.86165997]
[1748367875438,0.3343701,110400.0,110390.0,0.85257551]
[1748367875635,0.3663901,110400.0,110390.0,0.82057551]
[1748367875944,0.3663901,110400.0,110390.0,0.54086291]
[1748367876132,0.59328201,110400.0,110390.0,0.54086291]
[1748367876332,0.95328201,110400.0,110390.0,0.54086291]
[1748367876533,0.95328201,110400.0,110390.0,0.54751539]
[1748367876534,1.29486601,110400.0,110390.0,0.54751539]
[1748367876738,1.88255792,110400.0,110390.0,0.16002229]
[1748367876943,2.39463792,110400.0,110390.0,0.0901]
[1748367877137,1.9408541,110400.0,110390.0,0.0402]
[1748367877538,1.4287741,110400.0,110390.0,0.0402]
[1748367877842,1.65554601,110400.0,110390.0,0.0402]
[1748367878035,1.4286541,110400.0,110390.0,0.0402]
[1748367878240,1.65554601,110400.0,110390.0,0.0402]
[1748367878640,0.1810866,110390.0,110380.0,0.38082229]
[1748367878834,0.55797851,110390.0,110380.0,0.40082229]
[1748367879036,0.55797851,110390.0,110380.0,0.42751539]
[1748367879433,1.07333851,110390.0,110380.0,0.42751539]
[1748367879635,1.25333851,110390.0,110380.0,0.42751539]
[1748367880243,1.25833851,110390.0,110380.0,0.42751539]
[1748367880540,0.80767851,110390.0,110380.0,0.42751539]
[1748367880744,1.32291851,110390.0,110380.0,0.42751539]
[1748367881045,0.80767851,110390.0,110380.0,0.42751539]
[1748367881247,1.32267851,110390.0,110380.0,0.06671539]
[1748367881545,1.32267851,110390.0,110380.0,0.42751539]
[1748367881848,1.32279851,110390.0,110380.0,0.42751539]
[1748367882647,1.41339051,110390.0,110380.0,0.06672193]
[1748367883637,0.89839051,110390.0,110380.0,0.06672193]
[1748367883831,1.41159051,110390.0,110380.0,0.06672193]
[1748367884645,1.41159051,110390.0,110380.0,0.06672923]
[1748367884846,1.1846986,110390.0,110380.0,0.06672923]
[1748367885040,1.41159051,110390.0,110380.0,0.06672923]
[1748367885645,1.32099851,110390.0,110380.0,0.06672923]
[1748367886946,1.32099851,110390.0,110380.0,0.04003613]
[1748367887751,1.0941066,110390.0,110380.0,0.04003613]
[1748367888148,1.32099851,110390.0,110380.0,0.04003613]
[1748367888849,1.32099851,110390.0,110380.0,0.02]
[1748367889049,1.32099851,110390.0,110380.0,0.04004628]
[1748367890255,1.32542082,110390.0,110380.0,0.04004628]
[1748367890756,0.181103,110380.0,110370.0,0.38234124]
[1748367890956,0.614703,110380.0,110370.0,0.40234124]
[1748367891252,2.34159491,110380.0,110370.0,0.40234124]
[1748367891451,2.114703,110380.0,110370.0,0.40234124]
[1748367891751,0.614703,110380.0,110370.0,0.40234124]
[1748367891953,0.84359491,110380.0,110370.0,0.40234124]
[1748367892552,0.84459491,110380.0,110370.0,0.40234124]
[1748367893153,0.84459491,110380.0,110370.0,0.38229496]
[1748367893352,0.84459491,110380.0,110370.0,0.40235099]
[1748367893745,0.84459491,110380.0,110370.0,0.46555099]
[1748367896851,0.84459491,110380.0,110370.0,0.49224409]
[1748367897649,0.84459491,110380.0,110370.0,0.49224602]
[1748367898850,0.84459491,110380.0,110370.0,0.52374602]
[1748367900560,0.617703,110380.0,110370.0,0.52374602]
[1748367900856,0.84459491,110380.0,110370.0,0.52374602]
[1748367901248,0.586403,110380.0,110370.0,0.50368806]
[1748367901566,0.851643,110380.0,110370.0,0.72487037]
[1748367901761,0.851643,110380.0,110370.0,0.54375097]
[1748367902059,0.851643,110380.0,110370.0,0.72487037]
[1748367902463,0.851523,110380.0,110370.0,0.72487037]
[1748367902665,0.851643,110380.0,110370.0,0.72487037]
[1748367903045,0.851643,110380.0,110370.0,0.54375097]
[1748367903656,1.07853491,110380.0,110370.0,0.54375097]
[1748367904048,1.10943491,110380.0,110370.0,0.54375097]
[1748367904258,0.60411491,110380.0,110370.0,0.54375097]
[1748367904461,1.10759491,110380.0,110370.0,0.54375097]
[1748367904848,0.60411491,110380.0,110370.0,0.54375097]
[1748367905054,0.880263,110380.0,110370.0,0.54375097]
[1748367905253,1.10715491,110380.0,110370.0,0.54375097]
[1748367905459,1.08067722,110380.0,110370.0,0.54375097]
[1748367905762,1.08067722,110380.0,110370.0,0.51705787]
[1748367907658,0.85378531,110380.0,110370.0,0.51705787]
[1748367907858,0.35074531,110380.0,110370.0,0.79680337]
[1748367908161,0.35074531,110380.0,110370.0,0.61568397]
[1748367908357,0.31852531,110380.0,110370.0,0.69817727]
[1748367908557,0.31864531,110380.0,110370.0,0.69817727]
[1748367908760,0.31864531,110380.0,110370.0,0.80674046]
[1748367908961,0.69068531,110380.0,110370.0,0.75674046]
[1748367909160,0.69080531,110380.0,110370.0,0.75674046]
[1748367910158,0.69080531,110380.0,110370.0,0.8102186]
[1748367911069,0.69080531,110380.0,110370.0,1.08481826]
[1748367911070,0.18864531,110380.0,110370.0,1.08481826]
[1748367911262,0.18864531,110380.0,110370.0,1.09819445]
[1748367911571,0.18852531,110380.0,110370.0,0.87130254]
[1748367912168,0.18864531,110380.0,110370.0,0.87130254]
[1748367912361,0.18864531,110380.0,110370.0,0.90130254]
[1748367912663,0.18764531,110380.0,110370.0,1.12819445]
[1748367913071,0.18764531,110380.0,110370.0,0.90130254]
[1748367913573,0.18564531,110380.0,110370.0,1.01363237]
[1748367913953,0.18564531,110380.0,110370.0,0.78674046]
[1748367914158,0.18564531,110380.0,110370.0,1.01363237]
[1748367914358,0.18564531,110380.0,110370.0,1.26363237]
[1748367914773,0.18564531,110380.0,110370.0,1.03674046]
[1748367914963,0.18564531,110380.0,110370.0,1.26363237]
[1748367915165,0.18564531,110380.0,110370.0,1.16500627]
[1748367915472,0.18564531,110380.0,110370.0,1.31719051]
[1748367916374,0.18564531,110380.0,110370.0,1.0902986]
[1748367916564,0.18564531,110380.0,110370.0,1.31719051]
[1748367919367,0.00454231,110380.0,110370.0,1.31719051]
[1748367919569,0.00454231,110380.0,110370.0,1.31112646]
[1748367919769,0.00454231,110380.0,110370.0,1.37798079]
[1748367919976,0.00442231,110380.0,110370.0,1.37798079]
[1748367920171,0.00454231,110380.0,110370.0,1.37798079]
[1748367920973,0.18564501,110380.0,110370.0,1.40701643]
[1748367921475,0.18564501,110380.0,110370.0,1.47389319]
[1748367921683,0.18564501,110380.0,110370.0,1.24700128]
[1748367921878,0.18564501,110380.0,110370.0,1.47389319]
[1748367922175,0.18564501,110380.0,110370.0,1.24700128]
[1748367922475,0.18564501,110380.0,110370.0,1.96921319]
[1748367922670,0.18564501,110380.0,110370.0,1.64843131]
[1748367922873,0.1915399,110400.0,110380.0,0.3169073]
[1748367923170,0.4496941,110400.0,110390.0,1.03737652]
[1748367923372,0.4496941,110400.0,110390.0,1.1959134]
[1748367923569,0.4498141,110400.0,110390.0,1.23599444]
[1748367923976,0.4528141,110400.0,110390.0,1.23599444]
[1748367924474,0.4628141,110400.0,110390.0,1.11082706]
[1748367924685,0.4628141,110400.0,110390.0,1.20945316]
[1748367924975,0.4628141,110400.0,110390.0,1.26291078]
[1748367925272,0.4528141,110400.0,110390.0,1.26291078]
[1748367925570,0.4508141,110400.0,110390.0,1.31291078]
[1748367925771,0.4528141,110400.0,110390.0,1.31291078]
[1748367926577,0.4528141,110400.0,110390.0,1.29952412]
[1748367927577,0.317003,110400.0,110390.0,1.52641603]
[1748367927772,0.317003,110400.0,110390.0,1.48634507]
[1748367927977,0.316883,110400.0,110390.0,1.53980269]
[1748367928177,0.317003,110400.0,110390.0,1.31291078]
[1748367929186,0.381703,110400.0,110390.0,1.03319738]
[1748367929374,0.401703,110400.0,110390.0,1.31291078]
[1748367930381,0.62859491,110400.0,110390.0,1.28101078]
[1748367930876,0.62859491,110400.0,110390.0,1.267629]
[1748367931276,0.401703,110400.0,110390.0,1.267629]
[1748367932576,0.98939491,110400.0,110390.0,0.3149417]
[1748367932881,0.1811037,110380.0,110370.0,0.36229496]
[1748367933079,1.17975561,110380.0,110370.0,0.39229496]
[1748367933378,1.21095561,110380.0,110370.0,0.4323989]
[1748367933971,1.22447292,110380.0,110370.0,0.613519]
[1748367934176,1.24817792,110380.0,110370.0,0.645519]
[1748367934376,1.28089792,110380.0,110370.0,0.678319]
[1748367934574,1.28089792,110380.0,110370.0,0.711019]
[1748367934775,1.05400601,110380.0,110370.0,0.711019]
[1748367935867,1.05700601,110380.0,110370.0,0.710019]
[1748367936270,1.05900601,110380.0,110370.0,0.66891506]
[1748367936487,0.56724601,110380.0,110370.0,0.66891506]
[1748367937375,0.53604601,110380.0,110370.0,0.66891506]
[1748367937682,0.76152601,110380.0,110370.0,0.76754116]
[1748367937885,0.76140601,110380.0,110370.0,0.76754116]
[1748367938086,0.76152601,110380.0,110370.0,0.76754116]
[1748367938474,1.01861792,110380.0,110370.0,0.76754116]
[1748367938875,1.01761792,110380.0,110370.0,0.76754116]
[1748367939289,0.79072601,110380.0,110370.0,0.76754116]
[1748367939484,0.78972601,110380.0,110370.0,0.76754116]
[1748367940184,0.78972601,110380.0,110370.0,0.58642106]
[1748367940386,0.78972601,110380.0,110370.0,0.55372106]
[1748367942087,1.01661792,110380.0,110370.0,0.45509496]
[1748367943180,1.01661792,110380.0,110370.0,0.39229496]
[1748367943689,1.22661792,110380.0,110370.0,0.41235611]
[1748367943887,0.99972601,110380.0,110370.0,0.41235611]
[1748367944207,1.22661792,110380.0,110370.0,0.41235611]
[1748367944999,1.22661792,110380.0,110370.0,0.41235551]
[1748367945792,1.22661792,110380.0,110370.0,0.44495551]
[1748367947480,1.22661792,110380.0,110370.0,0.47605551]
[1748367948088,0.99972601,110380.0,110370.0,0.47605551]
[1748367948497,1.22661792,110380.0,110370.0,0.50925551]
[1748367949394,1.22661792,110380.0,110370.0,0.50924276]
[1748367950488,0.96536601,110380.0,110370.0,0.78898906]
[1748367950690,0.75528601,110380.0,110370.0,0.78898906]
[1748367950985,0.75516601,110380.0,110370.0,0.78898906]
[1748367951287,0.26144601,110380.0,110370.0,0.69036296]
[1748367951501,0.72216601,110380.0,110370.0,0.76894126]
[1748367952695,0.22864601,110380.0,110370.0,0.76894126]
[1748367952895,0.68128601,110380.0,110370.0,0.80903029]
[1748367953396,0.68116601,110380.0,110370.0,0.80903029]
[1748367953693,0.00754231,110380.0,110370.0,1.3965222]
[1748367953895,0.101,110400.0,110390.0,0.1810873]
[1748367954089,0.101,110400.0,110390.0,1.18878566]
[1748367954290,0.101,110400.0,110390.0,1.1731134]
[1748367954487,0.10112,110400.0,110390.0,1.1731134]
[1748367954692,0.10112,110400.0,110390.0,1.25667102]
[1748367954985,0.101,110400.0,110390.0,1.25667102]
[1748367955292,0.10112,110400.0,110390.0,1.48356293]
[1748367955494,0.2821909,110400.0,110390.0,1.48356293]
[1748367955800,0.10112,110400.0,110390.0,1.30937102]
[1748367955994,0.2821909,110400.0,110390.0,1.30937102]
[1748367956496,0.10112,110400.0,110390.0,1.2559134]
[1748367956694,0.10112,110400.0,110390.0,1.48280531]
[1748367956896,0.10112,110400.0,110390.0,1.2559134]
[1748367957101,0.282191,110400.0,110390.0,1.2559134]
[1748367957390,0.10112,110400.0,110390.0,1.48280531]
[1748367957595,0.10112,110400.0,110390.0,1.49636034]
[1748367957791,0.10112,110400.0,110390.0,1.54981796]
[1748367958702,0.10112,110400.0,110390.0,1.49636034]
[1748367960491,0.282191,110400.0,110390.0,1.26946843]
[1748367961097,0.10112,110400.0,110390.0,1.49636034]
[1748367961491,0.2821909,110400.0,110390.0,1.26946843]
[1748367961698,0.2821909,110400.0,110390.0,1.49636034]
[1748367961898,0.10112,110400.0,110390.0,1.49636034]
[1748367962298,0.2821909,110400.0,110390.0,1.08838113]
[1748367962497,0.2821909,110400.0,110390.0,1.02979166]
[1748367962697,0.3133909,110400.0,110390.0,1.30950506]
[1748367965000,1.09912281,110400.0,110390.0,0.69571734]
[1748367965192,1.31912281,110400.0,110390.0,0.69571734]
[1748367965392,1.35654512,110400.0,110390.0,0.65568071]
[1748367965901,1.12965321,110400.0,110390.0,0.65568071]
[1748367966098,1.17654512,110400.0,110390.0,0.65568071]
[1748367966395,0.77058231,110400.0,110390.0,0.93539411]
[1748367966697,0.43281321,110400.0,110390.0,0.91536811]
[1748367966904,0.25174231,110400.0,110390.0,0.95540474]
[1748367967097,0.77418231,110400.0,110390.0,0.95540474]
[1748367967302,0.70998231,110400.0,110390.0,1.28950506]
[1748367967602,0.10754231,110400.0,110390.0,1.51639697]
[1748367967901,0.10942231,110400.0,110390.0,1.28950506]
[1748367968497,0.10842231,110400.0,110390.0,1.28950506]
[1748367968800,0.10842231,110400.0,110390.0,1.34296268]
[1748367968801,0.10742231,110400.0,110390.0,1.34296268]
[1748367969006,0.10742231,110400.0,110390.0,1.30292605]
[1748367969194,0.10754231,110400.0,110390.0,1.56981796]
[1748367969504,0.28861321,110400.0,110390.0,1.56981796]
[1748367969705,0.28861321,110400.0,110390.0,1.34292605]
[1748367970096,0.28861321,110400.0,110390.0,1.30292605]
[1748367971497,0.28861321,110400.0,110390.0,1.52981796]
[1748367972005,0.28861321,110400.0,110390.0,1.53981796]
[1748367972398,0.28861321,110400.0,110390.0,1.31292605]
[1748367972596,0.28861321,110400.0,110390.0,1.53981796]
[1748367973201,0.28861321,110400.0,110390.0,1.31292605]
[1748367973508,0.28861321,110400.0,110390.0,1.53981796]
[1748367974907,0.10754231,110400.0,110390.0,1.31292605]
[1748367975100,0.10754231,110400.0,110390.0,1.53981796]
[1748367975403,0.28861321,110400.0,110390.0,1.31292605]
[1748367975604,0.10754231,110400.0,110390.0,1.31292605]
[1748367975800,0.10754231,110400.0,110390.0,1.53981796]
[1748367976298,0.10654231,110400.0,110390.0,1.31292605]
[1748367976607,0.10654231,110400.0,110390.0,1.53981796]
[1748367976801,0.10642231,110400.0,110390.0,1.31292605]
[1748367977000,0.10554231,110400.0,110390.0,1.53981796]
[1748367977807,0.10554231,110400.0,110390.0,1.63040196]
[1748367977996,0.10554231,110400.0,110390.0,1.82040196]
[1748367978199,0.10554231,110400.0,110390.0,1.8338211]
[1748367978399,0.10542231,110400.0,110390.0,1.60692919]
[1748367978602,0.10554231,110400.0,110390.0,1.8338211]
[1748367979506,0.10554231,110400.0,110390.0,2.5159411]
[1748367980004,0.10554231,110400.0,110390.0,2.49708624]
[1748367980202,0.10554231,110400.0,110390.0,1.88578871]
[1748367980401,0.10554231,110400.0,110390.0,2.56526871]
[1748367981008,0.10554231,110400.0,110390.0,2.56326871]
[1748367981400,0.10554231,110400.0,110390.0,2.56126871]
[1748367981599,0.10554231,110400.0,110390.0,2.40386224]
[1748367981809,0.10554231,110400.0,110390.0,1.72438224]
[1748367982007,0.31981321,110400.0,110390.0,2.40258224]
[1748367982201,0.31981321,110400.0,110390.0,1.88198224]
[1748367982400,0.31981321,110400.0,110390.0,2.04274729]
[1748367982801,0.31981321,110400.0,110390.0,1.88514729]
[1748367983004,0.31981321,110400.0,110390.0,2.04274729]
[1748367983206,0.31981321,110400.0,110390.0,1.94885732]
[1748367983610,0.31981321,110400.0,110390.0,1.88198224]
[1748367983813,0.31981321,110400.0,110390.0,1.97587221]
[1748367984308,0.31981321,110400.0,110390.0,1.81827221]
[1748367984614,0.31981321,110400.0,110390.0,1.97587221]
[1748367984803,0.31981321,110400.0,110390.0,1.88198224]
[1748367985209,0.31981321,110400.0,110390.0,1.97587221]
[1748367985409,0.31981321,110400.0,110390.0,1.7489803]
[1748367985605,0.31981321,110400.0,110390.0,2.04280713]
[1748367985808,0.31981321,110400.0,110390.0,1.72202525]
[1748367986011,0.31981321,110400.0,110390.0,1.94891716]
[1748367986911,0.31981321,110400.0,110390.0,1.56442525]
[1748367987212,0.31981321,110400.0,110390.0,1.31640335]
[1748367987412,0.31981321,110400.0,110390.0,1.30302002]
[1748367987606,0.35221321,110400.0,110390.0,1.24946843]
[1748367988309,0.35221321,110400.0,110390.0,1.47636034]
[1748367988513,0.35221321,110400.0,110390.0,1.49496249]
[1748367989614,0.31981321,110400.0,110390.0,1.3350055]
[1748367991013,0.31981321,110400.0,110390.0,1.3350344]
[1748367991208,0.31981321,110400.0,110390.0,1.38361775]
[1748367992713,0.31981321,110400.0,110390.0,1.28499165]
[1748367993016,0.31981321,110400.0,110390.0,1.61050966]
[1748367993408,0.31969321,110400.0,110390.0,1.61050966]
[1748367993608,0.31981321,110400.0,110390.0,1.61050966]
[1748367994317,0.31981321,110400.0,110390.0,1.38361775]
[1748367994619,0.31981321,110400.0,110390.0,1.61050966]
[1748367995217,0.31981321,110400.0,110390.0,1.59187861]
[1748367995429,0.31981321,110400.0,110390.0,1.61050771]
[1748367996729,0.31981321,110400.0,110390.0,1.3836158]
[1748367996923,0.31981321,110400.0,110390.0,1.61050771]
[1748367997213,0.31981321,110400.0,110390.0,1.49881765]
[1748367997426,0.31981321,110400.0,110390.0,1.72570956]
[1748367997612,0.31981321,110400.0,110390.0,1.81959953]
[1748367998823,0.31981321,110400.0,110390.0,1.59270762]
[1748367999213,0.31981321,110400.0,110390.0,1.81959953]
[1748367999410,0.31981321,110400.0,110390.0,1.59270762]
[1748367999615,0.31981321,110400.0,110390.0,1.59268667]
[1748368000120,0.31981321,110400.0,110390.0,1.81957858]
[1748368000311,0.31981321,110400.0,110390.0,1.4987967]
[1748368000511,0.31981321,110400.0,110390.0,1.61048676]
[1748368000714,0.35211321,110400.0,110390.0,1.38359485]
[1748368002023,0.35211321,110400.0,110390.0,1.36499277]
[1748368002820,0.35211321,110400.0,110390.0,1.36498912]
[1748368003323,0.35211321,110400.0,110390.0,1.18597725]
[1748368003714,0.36211321,110400.0,110390.0,1.18597725]
[1748368004233,0.36211321,110400.0,110390.0,1.11904233]
[1748368004927,0.54211321,110400.0,110390.0,1.18597725]
[1748368005217,0.54211321,110400.0,110390.0,1.11904233]